bitfinex-derivatives/quotes_SOLF0:USTF0_20250216
["timestamp","ask_amount","ask_price","bid_price","bid_amount"]
[1739680720123,5.1357,194.69,194.67,0.03602831]
[1739680721021,5.1353,194.7,194.67,0.03602831]
[1739680721924,0.03522067,194.71,194.67,0.03602831]
[1739680722223,0.03522067,194.71,194.67,9.17571915]
[1739680724024,5.17032067,194.71,194.67,14.31171915]
[1739680724324,0.03522067,194.71,194.67,9.17571915]
[1739680725125,5.1353,194.7,194.67,9.17571915]
[1739680726326,5.1353,194.7,194.67,0.03602831]
[1739680728527,5.17032067,194.71,194.67,0.03602831]
[1739680729027,5.17032067,194.71,194.67,9.17571915]
[1739680729218,5.17032067,194.71,194.68,5.1358]
[1739680729828,0.03522067,194.71,194.67,9.17571915]
[1739680730028,0.03522067,194.71,194.7,5.1353]
[1739680730229,0.03522067,194.71,194.69,9.13969084]
[1739680731028,0.03522067,194.71,194.69,14.27519084]
[1739680751633,0.03522067,194.71,194.69,9.13969084]
[1739680753039,0.03522067,194.71,194.69,14.27529084]
[1739680755542,0.03522067,194.71,194.69,9.13969084]
[1739680755739,0.03522067,194.71,194.67,0.03602831]
[1739680755936,9.13969084,194.7,194.67,0.03602831]
[1739680756337,5.1357,194.69,194.67,0.03602831]
[1739680756737,9.13969084,194.7,194.67,0.03602831]
[1739680758245,5.1358,194.69,194.67,0.03602831]
[1739680758445,0.03522067,194.71,194.67,5.17212831]
[1739680759551,0.03522067,194.71,194.69,5.1355]
[1739680759744,0.03522067,194.71,194.67,9.17571915]
[1739680760343,0.03522067,194.71,194.68,5.1356]
[1739680763543,5.17022067,194.71,194.68,5.1356]
[1739680765246,5.1356,194.69,194.67,0.03602831]
[1739680765956,0.03522067,194.71,194.67,0.03602831]
[1739680767250,5.1358,194.69,194.67,0.03602831]
[1739680769048,0.03522067,194.71,194.67,0.03602831]
[1739680769253,5.1358,194.68,194.67,0.03602831]
[1739680770350,14.27549084,194.68,194.67,0.03602831]
[1739680780457,5.1358,194.68,194.67,0.03602831]
[1739680784459,5.1353,194.7,194.67,0.03602831]
[1739680784658,0.03522067,194.71,194.67,0.03602831]
[1739680786060,5.1356,194.69,194.67,0.03602831]
[1739680787658,5.1354,194.7,194.67,0.03602831]
[1739680789362,5.1354,194.7,194.67,5.17212831]
[1739680789958,5.1354,194.7,194.67,14.31181915]
[1739680790165,0.03522067,194.71,194.7,5.1353]
[1739680790461,0.03522067,194.71,194.69,9.13969084]
[1739680791262,0.03522067,194.71,194.67,9.17571915]
[1739680791459,0.03522067,194.71,194.67,14.31171915]
[1739680791766,0.03522067,194.71,194.67,0.03602831]
[1739680791960,5.1355,194.7,194.67,0.03602831]
[1739680794064,0.03522067,194.71,194.67,9.17571915]
[1739680794564,0.03522067,194.71,194.69,5.1355]
[1739680794860,0.03522067,194.71,194.7,5.1353]
[1739680797068,9.13969084,194.78,194.73,5.1343]
[1739680797766,14.27309084,194.78,194.74,5.1342]
[1739680798168,14.27309084,194.78,194.74,5.16978567]
[1739680800267,14.27309084,194.78,194.74,0.03558567]
[1739680803474,5.1334,194.78,194.74,5.16978567]
[1739680806976,5.133,194.79,194.75,5.1339]
[1739680807576,9.13969084,194.8,194.75,5.1339]
[1739680807777,5.1332,194.78,194.74,5.16978567]
[1739680808277,5.1335,194.77,194.74,5.16978567]
[1739680810179,5.1335,194.77,194.74,0.03558567]
[1739680811781,5.1335,194.77,194.74,5.16978567]
[1739680812282,5.134,194.75,194.74,0.03558567]
[1739680816684,9.13969084,194.76,194.74,0.03558567]
[1739680816887,9.13969084,194.78,194.74,0.03558567]
[1739680817286,14.27309084,194.78,194.74,5.16978567]
[1739680818088,9.13969084,194.78,194.74,0.03558567]
[1739680818692,5.1338,194.76,194.74,0.03558567]
[1739680819791,5.134,194.75,194.74,0.03558567]
[1739680820694,5.1338,194.76,194.74,0.03558567]
[1739680822091,9.13969084,194.78,194.74,0.03558567]
[1739680822293,5.134,194.75,194.74,0.03558567]
[1739680828295,5.1335,194.77,194.74,0.03558567]
[1739680828595,9.13969084,194.78,194.74,0.03558567]
[1739680829699,5.1335,194.77,194.74,0.03558567]
[1739680830995,5.1332,194.78,194.74,14.30947651]
[1739680831198,44.29301548,194.82,194.74,9.17527651]
[1739680831495,44.29301548,194.82,194.76,9.13969084]
[1739680832497,5.1325,194.81,194.76,14.27339084]
[1739680832694,44.29301548,194.82,194.76,14.27339084]
[1739680832894,44.29301548,194.82,194.76,9.13969084]
[1739680833091,5.1329,194.8,194.76,9.13969084]
[1739680833898,5.1325,194.81,194.76,14.27339084]
[1739680834593,44.29301548,194.82,194.76,9.13969084]
[1739680834799,5.1329,194.8,194.76,9.13969084]
[1739680835702,44.29301548,194.82,194.76,9.13969084]
[1739680835998,44.29301548,194.82,194.74,14.30947651]
[1739680837101,5.1333,194.78,194.74,14.30947651]
[1739680838803,9.13969084,194.8,194.74,14.30947651]
[1739680839002,5.1335,194.77,194.74,14.30947651]
[1739680840406,9.13969084,194.78,194.74,0.03558567]
[1739680842205,5.134,194.75,194.74,0.03558567]
[1739680845099,9.13969084,194.78,194.74,0.03558567]
[1739680845307,5.1338,194.76,194.74,0.03558567]
[1739680845508,9.13969084,194.78,194.74,0.03558567]
[1739680847009,5.134,194.75,194.74,0.03558567]
[1739680848512,9.13969084,194.8,194.74,0.03558567]
[1739680848917,9.13969084,194.8,194.74,9.17527651]
[1739680849211,5.1335,194.77,194.74,14.30947651]
[1739680849814,5.134,194.75,194.74,0.03558567]
[1739680862926,5.1335,194.77,194.74,0.03558567]
[1739680864429,9.13969084,194.78,194.74,0.03558567]
[1739680864622,5.1337,194.76,194.74,0.03558567]
[1739680867733,5.134,194.75,194.74,0.03558567]
[1739680874740,5.134,194.75,194.74,8.567e-05]
[1739680878043,9.17519085,194.76,194.74,8.567e-05]
[1739680878342,5.16920001,194.76,194.74,8.567e-05]
[1739680879041,0.03550001,194.76,194.74,9.13977651]
[1739680884044,0.03550001,194.76,194.74,14.27377651]
[1739680884944,0.03550001,194.76,194.74,9.13977651]
[1739680885541,0.03550001,194.76,194.74,8.567e-05]
[1739680888946,5.16920001,194.76,194.74,8.567e-05]
[1739680889644,0.03550001,194.76,194.74,5.13408567]
[1739680891446,0.03550001,194.76,194.74,8.567e-05]
[1739680891647,0.03550001,194.76,194.75,5.134]
[1739680894947,0.03550001,194.76,194.74,5.13428567]
[1739680899654,0.03550001,194.76,194.74,8.567e-05]
[1739680902757,0.03550001,194.76,194.74,5.13428567]
[1739680904048,0.03550001,194.76,194.74,8.567e-05]
[1739680906558,5.134,194.75,194.74,8.567e-05]
[1739680909857,5.1352,194.71,194.66,5.1361]
[1739680910057,9.13969084,194.7,194.66,5.1361]
[1739680910955,9.17527652,194.7,194.66,5.17504368]
[1739680911156,14.31057652,194.7,194.66,5.17504368]
[1739680912156,9.17527652,194.7,194.67,5.1361]
[1739680912364,0.03558568,194.7,194.67,5.1361]
[1739680912963,0.03558568,194.7,194.68,5.1358]
[1739680913158,9.17527652,194.7,194.66,0.03894368]
[1739680913558,0.03558568,194.7,194.66,0.03894368]
[1739680914055,5.17088568,194.7,194.66,5.17504368]
[1739680914457,0.03558568,194.7,194.66,0.03894368]
[1739680914663,0.03558568,194.7,194.68,5.1358]
[1739680915865,0.03558568,194.7,194.66,0.03894368]
[1739680916068,5.17088568,194.7,194.66,0.03894368]
[1739680916759,0.03558568,194.7,194.66,0.03894368]
[1739680917366,0.03558568,194.7,194.68,5.1358]
[1739680917865,0.03558568,194.7,194.66,0.03894368]
[1739680919168,5.17088568,194.7,194.67,5.136]
[1739680920369,5.1357,194.69,194.66,0.03894368]
[1739680921269,5.1357,194.69,194.66,5.17524368]
[1739680922272,5.17098568,194.7,194.67,5.1361]
[1739680924271,0.03558568,194.7,194.66,0.03894368]
[1739680924570,5.17098568,194.7,194.67,5.136]
[1739680926472,0.03558568,194.7,194.69,5.1356]
[1739680943681,0.03558568,194.7,194.66,9.17863452]
[1739680943889,5.17088568,194.7,194.67,5.1359]
[1739680944081,0.03558568,194.7,194.66,0.03894368]
[1739680945985,0.03558568,194.7,194.68,5.1356]
[1739680947685,0.03558568,194.7,194.66,0.03894368]
[1739680947886,0.03558568,194.7,194.69,5.1356]
[1739680948086,0.03558568,194.7,194.66,0.03894368]
[1739680948287,0.03558568,194.7,194.68,5.1358]
[1739680949482,0.03558568,194.7,194.66,0.03894368]
[1739680949682,0.03558568,194.7,194.69,5.1356]
[1739680951089,0.03558568,194.7,194.68,5.1358]
[1739680952996,0.03558568,194.7,194.69,5.1356]
[1739680961902,0.03558568,194.7,194.67,7.29663138]
[1739680962104,0.03558568,194.7,194.68,5.1357]
[1739680964302,0.03558568,194.7,194.67,7.29663138]
[1739680964504,5.17088568,194.7,194.67,12.43263138]
[1739680965597,5.17088568,194.7,194.67,7.29663138]
[1739680965803,0.03558568,194.7,194.68,5.1358]
[1739680983725,0.03558568,194.7,194.67,7.29663138]
[1739680983920,0.03558568,194.7,194.69,5.1356]
[1739681013941,0.03558568,194.7,194.68,7.294926]
[1739681014147,0.03558568,194.7,194.66,7.33386968]
[1739681014732,5.17108568,194.7,194.67,5.136]
[1739681015442,5.1359,194.68,194.66,0.03894368]
[1739681017847,0.03558568,194.7,194.66,0.03894368]
[1739681018050,5.1356,194.69,194.66,12.47016968]
[1739681022749,5.1361,194.67,194.66,0.03894368]
[1739681023455,12.431026,194.67,194.66,0.03894368]
[1739681024849,7.294926,194.67,194.62,7.294926]
[1739681025054,7.294926,194.65,194.58,36.84218457]
[1739681025356,7.294926,194.65,194.58,35.29398457]
[1739681025555,5.1377,194.62,194.58,35.29398457]
[1739681025957,5.1377,194.62,194.58,7.294926]
[1739681026156,5.17511262,194.62,194.58,7.32991589]
[1739681027956,5.17511262,194.62,194.58,12.46831589]
[1739681030156,5.1381,194.6,194.58,0.03498989]
[1739681030354,0.03741262,194.62,194.58,0.03498989]
[1739681031055,5.1377,194.61,194.58,5.17338989]
[1739681033358,0.03741262,194.62,194.58,7.32991589]
[1739681033558,0.03741262,194.62,194.6,7.294926]
[1739681034257,0.03741262,194.62,194.6,12.432826]
[1739681036057,5.17491262,194.62,194.6,7.294926]
[1739681040262,5.1382,194.59,194.58,0.03498989]
[1739681052773,0.03741262,194.62,194.58,0.03498989]
[1739681052971,5.1382,194.59,194.58,0.03498989]
[1739681068980,12.433126,194.59,194.58,0.03498989]
[1739681069372,7.294926,194.59,194.51,5.1402]
[1739681069578,7.294926,194.57,194.5,7.294926]
[1739681070479,0.03297717,194.55,194.52,0.03455231]
[1739681070873,5.17237717,194.55,194.52,0.03455231]
[1739681072685,0.03297717,194.55,194.52,5.17455231]
[1739681073085,0.03297717,194.55,194.52,0.03455231]
[1739681073384,0.03297717,194.55,194.52,7.32947831]
[1739681074086,0.03297717,194.55,194.53,5.1397]
[1739681076087,0.03297717,194.55,194.52,12.46947831]
[1739681076588,5.17227717,194.55,194.52,12.46947831]
[1739681076789,5.17227717,194.55,194.52,0.03455231]
[1739681077190,0.03297717,194.55,194.52,0.03455231]
[1739681077488,5.1397,194.54,194.52,0.03455231]
[1739681084093,5.1397,194.54,194.52,5.17455231]
[1739681085903,5.1397,194.54,194.52,0.03455231]
[1739681088105,5.17227717,194.55,194.52,5.17455231]
[1739681097709,5.1395,194.54,194.52,5.17455231]
[1739681098509,0.03297717,194.55,194.52,5.17455231]
[1739681098704,5.17227717,194.55,194.52,5.17455231]
[1739681100912,5.1395,194.54,194.52,5.17455231]
[1739681102414,5.1395,194.54,194.52,0.03455231]
[1739681102807,0.03297717,194.55,194.52,0.03455231]
[1739681103104,5.1398,194.53,194.52,0.03455231]
[1739681103308,0.03297717,194.55,194.52,0.03455231]
[1739681104213,5.1396,194.54,194.52,0.03455231]
[1739681104605,7.32790317,194.55,194.52,0.03455231]
[1739681104810,12.434726,194.53,194.52,0.03455231]
[1739681105701,5.1398,194.53,194.52,0.03455231]
[1739681106209,7.32790317,194.55,194.52,0.03455231]
[1739681106410,5.1396,194.54,194.52,0.03455231]
[1739681107715,12.46720317,194.55,194.52,0.03455231]
[1739681108015,7.32790317,194.55,194.52,0.03455231]
[1739681108214,0.03297717,194.55,194.52,5.17455231]
[1739681111419,0.03297717,194.55,194.53,5.1398]
[1739681111617,0.03297717,194.55,194.52,0.03455231]
[1739681111913,0.03297717,194.55,194.53,5.1398]
[1739681112115,0.03297717,194.55,194.52,0.03455231]
[1739681112821,5.17247717,194.55,194.52,0.03455231]
[1739681114711,5.17247717,194.55,194.52,5.17455231]
[1739681115118,5.17247717,194.55,194.52,0.03455231]
[1739681115119,0.03297717,194.55,194.52,0.03455231]
[1739681115313,0.03297717,194.55,194.52,7.32947831]
[1739681115513,0.03297717,194.55,194.54,5.1395]
[1739681120723,0.03297717,194.55,194.52,7.32947831]
[1739681120924,0.03297717,194.55,194.53,5.1397]
[1739681123123,0.03297717,194.55,194.52,7.32947831]
[1739681123322,0.03297717,194.55,194.54,5.1395]
[1739681128128,0.03297717,194.55,194.54,12.434426]
[1739681128323,5.138,194.6,194.54,7.294926]
[1739681129028,5.138,194.6,194.57,5.1386]
[1739681129531,5.1718999,194.6,194.57,5.17572551]
[1739681129929,0.0338999,194.6,194.57,5.17572551]
[1739681130628,0.0338999,194.6,194.57,0.03712551]
[1739681130829,0.0338999,194.6,194.58,5.1382]
[1739681131125,0.0338999,194.6,194.57,0.03712551]
[1739681131329,0.0338999,194.6,194.59,5.1382]
[1739681135027,7.294926,194.67,194.58,7.294926]
[1739681135227,7.294926,194.67,194.62,5.1372]
[1739681135926,5.1365,194.66,194.62,5.1372]
[1739681136430,5.16938804,194.66,194.62,5.17353336]
[1739681137127,0.03288804,194.66,194.63,5.1371]
[1739681137433,0.03288804,194.66,194.63,7.294926]
[1739681138431,0.03288804,194.66,194.65,5.1366]
[1739681142631,7.294926,194.75,194.65,7.294926]
[1739681142831,12.428926,194.75,194.68,7.294926]
[1739681143036,12.428926,194.75,194.7,7.294926]
[1739681143230,7.294926,194.75,194.7,7.294926]
[1739681143533,7.294926,194.73,194.66,7.294926]
[1739681143733,7.294926,194.73,194.71,0.03567178]
[1739681143929,12.429526,194.73,194.71,0.03567178]
[1739681144632,7.294926,194.73,194.71,0.03567178]
[1739681145137,7.294926,194.75,194.72,5.1346]
[1739681145431,12.428426,194.77,194.7,7.294926]
[1739681145630,12.428426,194.77,194.72,0.03684856]
[1739681145832,7.294926,194.77,194.72,0.03684856]
[1739681146032,7.294926,194.77,194.73,5.1343]
[1739681146834,7.294926,194.79,194.72,7.33177456]
[1739681147034,12.427826,194.79,194.74,5.134]
[1739681147335,7.294926,194.79,194.74,5.134]
[1739681148043,7.294926,194.79,194.72,7.33177456]
[1739681149038,12.427926,194.79,194.74,5.1342]
[1739681149537,5.1332,194.78,194.74,5.1342]
[1739681149841,7.294926,194.79,194.72,7.33177456]
[1739681150035,48.34600408,194.84,194.72,0.03684856]
[1739681150036,7.294926,194.77,194.72,0.03684856]
[1739681150237,5.1343,194.74,194.7,7.294926]
[1739681150431,5.1343,194.74,194.64,1.5873]
[1739681150432,5.1343,194.74,194.73,0.03378185]
[1739681150639,7.294926,194.75,194.69,5.1355]
[1739681150839,5.1345,194.73,194.72,0.03957051]
[1739681151436,12.429426,194.73,194.72,0.03957051]
[1739681152635,12.429426,194.73,194.72,7.051e-05]
[1739681152839,7.294926,194.73,194.64,1.5873]
[1739681153034,7.294926,194.68,194.63,1.5768]
[1739681153231,5.1369,194.65,194.6,12.432626]
[1739681153439,7.294926,194.66,194.6,12.432626]
[1739681154142,0.03576378,194.65,194.61,0.03876155]
[1739681155342,7.294926,194.64,194.61,0.03876155]
[1739681155739,5.1374,194.62,194.61,0.03876155]
[1739681157244,12.432326,194.62,194.61,0.03876155]
[1739681160340,5.1374,194.62,194.61,0.03876155]
[1739681160947,12.432326,194.62,194.61,0.03876155]
[1739681169555,5.1374,194.62,194.61,0.03876155]
[1739681171053,7.294926,194.64,194.61,0.03876155]
[1739681171249,5.1372,194.63,194.61,0.03876155]
[1739681172560,5.1374,194.62,194.61,0.03876155]
[1739681173761,5.1371,194.64,194.61,0.03876155]
[1739681174057,0.03576378,194.65,194.61,0.03876155]
[1739681175062,5.1374,194.62,194.61,0.03876155]
[1739681175554,5.1369,194.64,194.61,0.03876155]
[1739681177064,0.03576378,194.65,194.61,0.03876155]
[1739681178162,5.17256378,194.65,194.61,5.17626155]
[1739681179362,0.03576378,194.65,194.62,5.1372]
[1739681179565,0.03576378,194.65,194.61,0.03876155]
[1739681180263,5.17256378,194.65,194.61,5.17636155]
[1739681181165,0.03576378,194.65,194.62,5.1372]
[1739681183960,0.03576378,194.65,194.63,5.1371]
[1739681184463,0.03576378,194.65,194.61,0.03876155]
[1739681185062,5.17246378,194.65,194.61,5.17626155]
[1739681185567,5.137,194.64,194.61,5.17626155]
[1739681187272,5.17246378,194.65,194.61,5.17626155]
[1739681187468,0.03576378,194.65,194.62,5.1373]
[1739681187871,5.17256378,194.65,194.61,0.03876155]
[1739681188071,5.17256378,194.65,194.61,5.17616155]
[1739681188270,5.17256378,194.65,194.61,0.03876155]
[1739681188671,5.17256378,194.65,194.61,5.17636155]
[1739681190679,0.03576378,194.65,194.64,5.1369]
[1739681191278,0.03576378,194.65,194.63,5.1371]
[1739681193780,0.03576378,194.65,194.62,12.432226]
[1739681195380,5.17236378,194.65,194.62,12.432226]
[1739681196580,0.03576378,194.65,194.63,5.1369]
[1739681197783,0.03576378,194.65,194.64,5.1369]
[1739681200581,7.294926,194.7,194.64,7.294926]
[1739681200786,7.294926,194.72,194.66,7.294926]
[1739681201687,12.429826,194.72,194.68,5.1356]
[1739681203388,5.1351,194.71,194.68,5.1356]
[1739681209794,5.1351,194.71,194.67,0.03636704]
[1739681210089,5.1351,194.71,194.67,5.17236704]
[1739681210290,7.294926,194.7,194.67,0.03636704]
[1739681210892,5.1358,194.68,194.67,0.03636704]
[1739681211393,12.430726,194.68,194.67,0.03636704]
[1739681226298,12.430726,194.68,194.67,6.704e-05]
[1739681227998,5.1379,194.6,194.58,7.294926]
[1739681228198,7.294926,194.63,194.58,7.294926]
[1739681228500,7.294926,194.61,194.56,8.952226]
[1739681228699,5.1381,194.6,194.56,8.952226]
[1739681229202,0.03669859,194.6,194.56,8.99179302]
[1739681229999,0.03669859,194.6,194.57,5.1385]
[1739681230506,0.03669859,194.6,194.56,8.99179302]
[1739681230806,0.03669859,194.6,194.58,5.1384]
[1739681238314,0.03669859,194.6,194.59,5.1382]
[1739681240716,5.1364,194.66,194.62,5.1372]
[1739681240919,7.294926,194.67,194.6,7.294926]
[1739681241420,12.431526,194.65,194.61,5.1376]
[1739681241818,12.431526,194.65,194.61,5.17272852]
[1739681242018,5.1369,194.64,194.61,5.17272852]
[1739681244720,12.431626,194.65,194.61,5.17272852]
[1739681245020,12.431626,194.65,194.62,5.1373]
[1739681245522,12.431626,194.65,194.61,0.03512852]
[1739681245721,12.431626,194.65,194.61,5.17272852]
[1739681246822,7.294926,194.65,194.61,5.17272852]
[1739681247021,5.1369,194.64,194.61,0.03512852]
[1739681247826,5.1369,194.64,194.61,5.17282852]
[1739681255230,7.294926,194.69,194.62,7.294926]
[1739681256131,5.1363,194.67,194.63,5.1369]
[1739681256327,7.294926,194.69,194.63,5.1369]
[1739681256831,5.1364,194.66,194.63,5.1369]
[1739681257426,5.1364,194.66,194.62,7.294926]
[1739681257427,7.294926,194.69,194.62,7.294926]
[1739681257635,7.294926,194.69,194.64,5.1367]
[1739681257932,5.136,194.68,194.64,5.1367]
[1739681258230,7.294926,194.69,194.64,5.1367]
[1739681259031,5.136,194.68,194.64,5.1367]
[1739681259230,5.136,194.68,194.65,5.1366]
[1739681259732,193.0,194.7,194.64,7.294926]
[1739681259928,59.94370067,194.71,194.66,12.431226]
[1739681260130,52.64877467,194.71,194.66,7.294926]
[1739681260731,52.64877467,194.71,194.68,5.1358]
[1739681261631,52.64877467,194.71,194.67,5.136]
[1739681261932,52.64877467,194.71,194.66,7.294926]
[1739681262327,52.64877467,194.71,194.68,5.1357]
[1739681263131,52.64877467,194.71,194.66,7.294926]
[1739681263331,5.136,194.68,194.65,0.03927482]
[1739681264027,59.94370067,194.71,194.65,0.03927482]
[1739681264331,7.294926,194.67,194.65,0.03927482]
[1739681265036,5.1364,194.66,194.65,0.03927482]
[1739681271332,7.294926,194.69,194.65,0.03927482]
[1739681271628,5.1359,194.68,194.65,0.03927482]
[1739681272537,5.1361,194.67,194.65,0.03927482]
[1739681276538,7.294926,194.69,194.65,0.03927482]
[1739681278445,5.1363,194.67,194.65,0.03927482]
[1739681279644,5.1364,194.66,194.65,0.03927482]
[1739681293853,5.1361,194.67,194.65,0.03927482]
[1739681295355,5.1359,194.68,194.65,0.03927482]
[1739681296850,7.294926,194.69,194.65,0.03927482]
[1739681297049,12.430526,194.69,194.65,0.03927482]
[1739681298751,7.294926,194.71,194.66,12.431226]
[1739681298956,7.294926,194.73,194.66,7.294926]
[1739681299356,5.1354,194.7,194.68,0.03454401]
[1739681303459,5.1356,194.69,194.68,0.03454401]
[1739681303756,12.430526,194.69,194.68,0.03454401]
[1739681307057,5.1373,194.63,194.58,12.433326]
[1739681307359,7.294926,194.64,194.58,12.433326]
[1739681307860,7.294926,194.64,194.58,7.294926]
[1739681308257,0.03811126,194.63,194.59,0.03736354]
[1739681309058,0.03811126,194.63,194.6,5.1379]
[1739681314464,0.03811126,194.63,194.6,7.294926]
[1739681314668,0.03811126,194.63,194.62,7.294926]
[1739681314869,7.294926,194.68,194.62,7.294926]
[1739681315068,5.1363,194.67,194.63,5.137]
[1739681315467,7.294926,194.68,194.63,5.137]
[1739681315869,5.1362,194.67,194.64,0.03260163]
[1739681318767,5.1356,194.69,194.65,5.1365]
[1739681318961,5.1356,194.69,194.64,7.32752763]
[1739681319369,5.1356,194.69,194.65,5.1365]
[1739681319673,5.1359,194.68,194.64,7.32752763]
[1739681320072,5.1359,194.68,194.65,5.1366]
[1739681327485,5.1359,194.68,194.64,7.32752763]
[1739681327683,5.1359,194.68,194.66,5.1363]
[1739681329085,7.294926,194.7,194.66,5.1363]
[1739681329287,5.1357,194.69,194.66,5.1363]
[1739681332188,7.294926,194.7,194.64,7.32752763]
[1739681332389,5.1352,194.71,194.67,5.1361]
[1739681332784,5.1352,194.71,194.67,5.17432222]
[1739681333192,5.1353,194.7,194.67,5.17432222]
[1739681343299,5.1351,194.71,194.68,5.1357]
[1739681343499,7.294926,194.72,194.67,0.03822222]
[1739681343699,5.1348,194.72,194.69,5.1355]
[1739681344996,5.1348,194.72,194.68,12.430726]
[1739681346596,7.294926,194.74,194.68,5.1358]
[1739681346802,246.13869965,194.75,194.67,0.03822222]
[1739681346803,5.1351,194.71,194.67,5.17422222]
[1739681347805,7.294926,194.72,194.67,0.03822222]
[1739681348505,12.429726,194.72,194.68,5.1356]
[1739681349505,7.294926,194.72,194.67,0.03822222]
[1739681349706,7.294926,194.72,194.69,5.1355]
[1739681350107,12.429226,194.74,194.7,5.1353]
[1739681351102,53.13869965,194.75,194.68,7.294926]
[1739681351308,53.13869965,194.75,194.71,5.1349]
[1739681351713,53.13869965,194.75,194.71,5.17437181]
[1739681352106,58.27289965,194.75,194.71,5.17437181]
[1739681354311,58.27289965,194.75,194.72,5.1348]
[1739681354511,53.13869965,194.75,194.72,5.1348]
[1739681355314,53.13869965,194.75,194.71,0.03947181]
[1739681355510,7.294926,194.78,194.74,5.1342]
[1739681355913,7.294926,194.78,194.74,5.17251831]
[1739681356610,12.428226,194.78,194.74,5.17251831]
[1739681360114,5.1335,194.77,194.74,0.03831831]
[1739681361820,5.1335,194.77,194.74,5.17251831]
[1739681363818,5.1335,194.77,194.74,0.03831831]
[1739681365020,7.294926,194.78,194.74,0.03831831]
[1739681365217,5.134,194.75,194.74,0.03831831]
[1739681374827,12.428926,194.76,194.74,0.03831831]
[1739681375926,7.294926,194.76,194.74,0.03831831]
[1739681376127,5.134,194.75,194.74,0.03831831]
[1739681378625,7.294926,194.76,194.74,0.03831831]
[1739681378825,12.428726,194.76,194.74,0.03831831]
[1739681379428,7.294926,194.76,194.74,0.03831831]
[1739681383928,7.294926,194.76,194.74,5.17231831]
[1739681384629,7.294926,194.76,194.74,0.03831831]
[1739681386532,12.428626,194.76,194.74,0.03831831]
[1739681397346,7.294926,194.76,194.74,0.03831831]
[1739681397543,7.294926,194.76,194.74,5.17251831]
[1739681400346,7.294926,194.76,194.74,0.03831831]
[1739681401852,12.428726,194.76,194.74,0.03831831]
[1739681403752,12.428226,194.78,194.74,5.17251831]
[1739681404856,7.294926,194.78,194.74,0.03831831]
[1739681405053,5.1335,194.77,194.74,0.03831831]
[1739681406054,5.1337,194.76,194.74,0.03831831]
[1739681407556,7.294926,194.78,194.74,0.03831831]
[1739681407751,7.294926,194.8,194.74,0.03831831]
[1739681408555,5.133,194.79,194.74,5.17251831]
[1739681409752,7.294926,194.8,194.74,0.03831831]
[1739681409955,7.294926,194.8,194.76,5.1337]
[1739681410156,7.294926,194.8,194.74,7.33324431]
[1739681410353,5.133,194.79,194.74,7.33324431]
[1739681411758,5.133,194.79,194.74,12.46724431]
[1739681411959,7.294926,194.8,194.74,12.46724431]
[1739681412154,5.1332,194.78,194.74,7.33324431]
[1739681413559,5.1336,194.77,194.74,7.33324431]
[1739681413860,5.1336,194.77,194.74,0.03831831]
[1739681416565,5.1336,194.77,194.74,5.17241831]
[1739681416859,5.1333,194.78,194.74,0.03831831]
[1739681417160,7.294926,194.8,194.74,0.03831831]
[1739681417660,5.1334,194.78,194.75,5.1339]
[1739681422867,5.1335,194.77,194.75,5.1339]
[1739681424268,5.1335,194.77,194.74,0.03831831]
[1739681424568,5.1337,194.76,194.74,0.03831831]
[1739681424968,7.294926,194.8,194.74,0.03831831]
[1739681425169,7.294926,194.8,194.74,5.17231831]
[1739681425567,5.1335,194.77,194.74,5.17231831]
[1739681427372,7.294926,194.8,194.74,0.03831831]
[1739681427668,5.1332,194.78,194.75,5.1339]
[1739681429072,5.1332,194.78,194.74,0.03831831]
[1739681429370,5.1332,194.78,194.76,5.1337]
[1739681429670,5.1332,194.78,194.74,0.03831831]
[1739681429862,5.1332,194.78,194.75,5.1339]
[1739681431968,5.133,194.79,194.76,5.1337]
[1739681433377,5.133,194.79,194.75,5.1339]
[1739681434381,7.294926,194.8,194.74,0.03831831]
[1739681434579,5.1334,194.78,194.74,5.17251831]
[1739681435980,7.294926,194.8,194.74,5.17251831]
[1739681436180,5.1335,194.77,194.74,5.17251831]
[1739681436977,7.294926,194.8,194.74,0.03831831]
[1739681437379,7.294926,194.8,194.74,7.33324431]
[1739681437982,5.1331,194.79,194.76,5.1337]
[1739681438181,7.294926,194.8,194.76,5.1337]
[1739681438383,5.133,194.79,194.76,5.1337]
[1739681438878,7.294926,194.8,194.75,5.1339]
[1739681439080,5.1333,194.78,194.75,5.1339]
[1739681439884,7.294926,194.8,194.74,7.33324431]